Workbook

Sheet Продукты
A1: Рацион (расчет на 100 грамм) | I1: Белки | J1: Углеводы | K1: Жиры
H2: эн. Цен. (кКал) | I2: 3.8 | J2: 4.1 | K2: 9.3
B3: Продукты | C3: Белки | D3: Жиры | E3: Углеводы | F3: кКал
A4: 1 | B4: Рисовая | C4: 7 | D4: 0.6 | E4: 77 | F4: 323 | H4: Калькулятор на день | P4: Суточная норма
A5: 2 | B5: Пшено | C5: 12 | D5: 2.9 | E5: 69 | F5: 334 | P5: Белки | Q5: 140
A6: 3 | B6: Овсяная | C6: 11.9 | D6: 5.8 | E6: 65.4 | F6: 345 | K6: Белков: | L6: Жиров: | M6: Углеводов: | N6: кКал: | P6: Жиры | Q6: 100
A7: 4 | B7: Перловая | C7: 9.3 | D7: 1.1 | E7: 73 | F7: 324 | K7: =SUM(K9:K26) -> 7 | L7: =SUM(L9:L26) -> 0.6 | M7: =SUM(M9:M37) -> 77 | N7: =SUM(N9:N37) -> 323 | P7: Углеводы | Q7: 500
A8: 5 | B8: Кукурузная | C8: 8.3 | D8: 1.2 | E8: 75 | F8: 325 | J8: Масса (г.) | P8: кКал | Q8: 3000
A9: 6 | B9: Пшеничная | C9: 12.7 | D9: 1.1 | E9: 70 | F9: 325 | H9: Рисовая | J9: 100 | K9: =(INDEX($B$4:$F$100,MATCH($H9,Таблица1[Продукты],0),2))*$J9/100 -> 7 | L9: =(INDEX($B$4:$F$100,MATCH($H9,Таблица1[Продукты],0),3))*$J9/100 -> 0.6 | M9: =(INDEX($B$4:$F$100,MATCH($H9,Таблица1[Продукты],0),4))*$J9/100 -> 77 | N9: =(INDEX($B$4:$F$100,MATCH($H9,Таблица1[Продукты],0),5))*$J9/100 -> 323
A10: 7 | B10: Ячневая | C10: 10 | D10: 1.3 | E10: 65 | F10: 313 | H10: Овсяная | J10: 0 | K10: =(INDEX($B$4:$F$100,MATCH($H10,Таблица1[Продукты],0),2))*$J10/100 -> 0 | L10: =(INDEX($B$4:$F$100,MATCH($H10,Таблица1[Продукты],0),3))*$J10/100 -> 0 | M10: =(INDEX($B$4:$F$100,MATCH($H10,Таблица1[Продукты],0),4))*$J10/100 -> 0 | N10: =(INDEX($B$4:$F$100,MATCH($H10,Таблица1[Продукты],0),5))*$J10/100 -> 0
A11: 8 | B11: Гречка | C11: 12.6 | D11: 2.3 | E11: 65 | F11: 324
A12: 9 | B12: Манка | C12: 11.3 | D12: 0.7 | E12: 73 | F12: 326
A13: 10 | B13: Макароны | C13: 12.9 | D13: 0.1 | E13: 69.9 | F13: 344
A14: 11 | B14: Сливочное масло | C14: 0.4 | D14: 82.4 | E14: 0.8 | F14: 747
A15: 12 | B15: Сыр | C15: 23.7 | D15: 30.4 | E15: 0 | F15: 375
A16: 13 | B16: Колбаса копченная | C16: 24 | D16: 43 | E16: 0 | F16: 486
A17: 14 | B17: Сахар | C17: 0 | D17: 0 | E17: 99.7 | F17: 375
A18: 15 | B18: Пряники | C18: 4.8 | D18: 2.8 | E18: 77 | F18: 335.8
A19: 16 | B19: Вафли | C19: 3 | D19: 32.4 | E19: 61.6 | F19: 543
A20: 17 | B20: Сгущенка | C20: 7.8 | D20: 8.7 | E20: 55.8 | F20: 345
A21: 18 | B21: Сайра | C21: 18 | D21: 23.3 | E21: 0 | F21: 281
A22: 19 | B22: Сухарики | C22: 11.5 | D22: 2 | E22: 74 | F22: 360
A23: 20 | B23: Фасоль | C23: 22 | D23: 1.7 | E23: 54 | F23: 309
A24: 21 | B24: Арахис | C24: 26 | D24: 45 | E24: 10 | F24: 552
A25: 22 | B25: Говядина (консерва) | C25: 16.7 | D25: 14.3 | E25: 3.9 | F25: 212

Sheet Походный лист
A1: День | F1: 1 | H1: День | M1: 2 | O1: День | T1: 3
C3: Белков: | D3: Жиров: | E3: Углеводов: | F3: кКал: | J3: Белков: | K3: Жиров: | L3: Углеводов: | M3: кКал: | Q3: Белков: | R3: Жиров: | S3: Углеводов: | T3: кКал:
C4: =SUM(C6:C23) -> 131.2 | D4: =SUM(D6:D23) -> 45.8 | E4: =SUM(E6:E34) -> 519 | F4: =SUM(F6:F34) -> 3441 | J4: =SUM(J6:J23) -> 119.6 | K4: =SUM(K6:K23) -> 17.3 | L4: =SUM(L6:L34) -> 698 | M4: =SUM(M6:M34) -> 3645 | Q4: =SUM(Q6:Q23) -> 63.75 | R4: =SUM(R6:R23) -> 21.75 | S4: =SUM(S6:S34) -> 219.45 | T4: =SUM(T6:T34) -> 1568
B5: Масса (г.) | I5: Масса (г.) | P5: Масса (г.)
A6: Макароны | B6: 100 | C6: =(INDEX(Продукты!$B$4:$F$100,MATCH($A6,Таблица1[Продукты],0),2))*$B6/100 -> 12.9 | D6: =(INDEX(Продукты!$B$4:$F$100,MATCH($A6,Таблица1[Продукты],0),3))*$B6/100 -> 0.1 | E6: =(INDEX(Продукты!$B$4:$F$100,MATCH($A6,Таблица1[Продукты],0),4))*$B6/100 -> 69.9 | F6: =(INDEX(Продукты!$B$4:$F$100,MATCH($A6,Таблица1[Продукты],0),5))*$B6/100 -> 344 | H6: Макароны | I6: 100 | J6: =(INDEX(Продукты!$B$4:$F$100,MATCH($H6,Таблица1[Продукты],0),2))*$I6/100 -> 12.9 | K6: =(INDEX(Продукты!$B$4:$F$100,MATCH($H6,Таблица1[Продукты],0),3))*$I6/100 -> 0.1 | L6: =(INDEX(Продукты!$B$4:$F$100,MATCH($H6,Таблица1[Продукты],0),4))*$I6/100 -> 69.9 | M6: =(INDEX(Продукты!$B$4:$F$100,MATCH($H6,Таблица1[Продукты],0),5))*$I6/100 -> 344 | O6: Макароны | P6: 100 | Q6: =(INDEX(Продукты!$B$4:$F$100,MATCH($O6,Таблица1[Продукты],0),2))*$P6/100 -> 12.9 | R6: =(INDEX(Продукты!$B$4:$F$100,MATCH($O6,Таблица1[Продукты],0),3))*$P6/100 -> 0.1 | S6: =(INDEX(Продукты!$B$4:$F$100,MATCH($O6,Таблица1[Продукты],0),4))*$P6/100 -> 69.9 | T6: =(INDEX(Продукты!$B$4:$F$100,MATCH($O6,Таблица1[Продукты],0),5))*$P6/100 -> 344
A7: Говядина (консерва) | B7: 100 | C7: =(INDEX(Продукты!$B$4:$F$100,MATCH($A7,Таблица1[Продукты],0),2))*$B7/100 -> 16.7 | D7: =(INDEX(Продукты!$B$4:$F$100,MATCH($A7,Таблица1[Продукты],0),3))*$B7/100 -> 14.3 | E7: =(INDEX(Продукты!$B$4:$F$100,MATCH($A7,Таблица1[Продукты],0),4))*$B7/100 -> 3.9 | F7: =(INDEX(Продукты!$B$4:$F$100,MATCH($A7,Таблица1[Продукты],0),5))*$B7/100 -> 212 | H7: Говядина (консерва) | I7: 100 | J7: =(INDEX(Продукты!$B$4:$F$100,MATCH($H7,Таблица1[Продукты],0),2))*$I7/100 -> 16.7 | K7: =(INDEX(Продукты!$B$4:$F$100,MATCH($H7,Таблица1[Продукты],0),3))*$I7/100 -> 14.3 | L7: =(INDEX(Продукты!$B$4:$F$100,MATCH($H7,Таблица1[Продукты],0),4))*$I7/100 -> 3.9 | M7: =(INDEX(Продукты!$B$4:$F$100,MATCH($H7,Таблица1[Продукты],0),5))*$I7/100 -> 212 | O7: Говядина (консерва) | P7: 50 | Q7: =(INDEX(Продукты!$B$4:$F$100,MATCH($O7,Таблица1[Продукты],0),2))*$P7/100 -> 8.35 | R7: =(INDEX(Продукты!$B$4:$F$100,MATCH($O7,Таблица1[Продукты],0),3))*$P7/100 -> 7.15 | S7: =(INDEX(Продукты!$B$4:$F$100,MATCH($O7,Таблица1[Продукты],0),4))*$P7/100 -> 1.95 | T7: =(INDEX(Продукты!$B$4:$F$100,MATCH($O7,Таблица1[Продукты],0),5))*$P7/100 -> 106
A8: Кукурузная | B8: 200 | C8: =(INDEX(Продукты!$B$4:$F$100,MATCH($A8,Таблица1[Продукты],0),2))*$B8/100 -> 16.6 | D8: =(INDEX(Продукты!$B$4:$F$100,MATCH($A8,Таблица1[Продукты],0),3))*$B8/100 -> 2.4 | E8: =(INDEX(Продукты!$B$4:$F$100,MATCH($A8,Таблица1[Продукты],0),4))*$B8/100 -> 150 | F8: =(INDEX(Продукты!$B$4:$F$100,MATCH($A8,Таблица1[Продукты],0),5))*$B8/100 -> 650 | H8: Гречка | I8: 100 | J8: =(INDEX(Продукты!$B$4:$F$100,MATCH($H8,Таблица1[Продукты],0),2))*$I8/100 -> 12.6 | K8: =(INDEX(Продукты!$B$4:$F$100,MATCH($H8,Таблица1[Продукты],0),3))*$I8/100 -> 2.3 | L8: =(INDEX(Продукты!$B$4:$F$100,MATCH($H8,Таблица1[Продукты],0),4))*$I8/100 -> 65 | M8: =(INDEX(Продукты!$B$4:$F$100,MATCH($H8,Таблица1[Продукты],0),5))*$I8/100 -> 324
A18: День | F18: 4 | H18: День | M18: 5 | O18: День | T18: 6
C20: Белков: | D20: Жиров: | E20: Углеводов: | F20: кКал: | J20: Белков: | K20: Жиров: | L20: Углеводов: | M20: кКал: | Q20: Белков: | R20: Жиров: | S20: Углеводов: | T20: кКал:
C21: =SUM(C23:C40) -> 72.1 | D21: =SUM(D23:D40) -> 28.9 | E21: =SUM(E23:E51) -> 221.4 | F21: =SUM(F23:F51) -> 1675 | J21: =SUM(J23:J40) -> 64.5 | K21: =SUM(K23:K40) -> 0.5 | L21: =SUM(L23:L51) -> 419.4 | M21: =SUM(M23:M51) -> 2072 | Q21: =SUM(Q23:Q40) -> 29.6 | R21: =SUM(R23:R40) -> 14.4 | S21: =SUM(S23:S51) -> 73.8 | T21: =SUM(T23:T51) -> 556
B22: Масса (г.) | I22: Масса (г.) | P22: Масса (г.)
A23: Макароны | B23: 100 | C23: =(INDEX(Продукты!$B$4:$F$100,MATCH($A23,Таблица1[Продукты],0),2))*$B23/100 -> 12.9 | D23: =(INDEX(Продукты!$B$4:$F$100,MATCH($A23,Таблица1[Продукты],0),3))*$B23/100 -> 0.1 | E23: =(INDEX(Продукты!$B$4:$F$100,MATCH($A23,Таблица1[Продукты],0),4))*$B23/100 -> 69.9 | F23: =(INDEX(Продукты!$B$4:$F$100,MATCH($A23,Таблица1[Продукты],0),5))*$B23/100 -> 344 | H23: Макароны | I23: 100 | J23: =(INDEX(Продукты!$B$4:$F$100,MATCH($H23,Таблица1[Продукты],0),2))*$I23/100 -> 12.9 | K23: =(INDEX(Продукты!$B$4:$F$100,MATCH($H23,Таблица1[Продукты],0),3))*$I23/100 -> 0.1 | L23: =(INDEX(Продукты!$B$4:$F$100,MATCH($H23,Таблица1[Продукты],0),4))*$I23/100 -> 69.9 | M23: =(INDEX(Продукты!$B$4:$F$100,MATCH($H23,Таблица1[Продукты],0),5))*$I23/100 -> 344 | O23: Макароны | P23: 100 | Q23: =(INDEX(Продукты!$B$4:$F$100,MATCH($O23,Таблица1[Продукты],0),2))*$P23/100 -> 12.9 | R23: =(INDEX(Продукты!$B$4:$F$100,MATCH($O23,Таблица1[Продукты],0),3))*$P23/100 -> 0.1 | S23: =(INDEX(Продукты!$B$4:$F$100,MATCH($O23,Таблица1[Продукты],0),4))*$P23/100 -> 69.9 | T23: =(INDEX(Продукты!$B$4:$F$100,MATCH($O23,Таблица1[Продукты],0),5))*$P23/100 -> 344
A24: Говядина (консерва) | B24: 100 | C24: =(INDEX(Продукты!$B$4:$F$100,MATCH($A24,Таблица1[Продукты],0),2))*$B24/100 -> 16.7 | D24: =(INDEX(Продукты!$B$4:$F$100,MATCH($A24,Таблица1[Продукты],0),3))*$B24/100 -> 14.3 | E24: =(INDEX(Продукты!$B$4:$F$100,MATCH($A24,Таблица1[Продукты],0),4))*$B24/100 -> 3.9 | F24: =(INDEX(Продукты!$B$4:$F$100,MATCH($A24,Таблица1[Продукты],0),5))*$B24/100 -> 212 | H24: Макароны | I24: 100 | J24: =(INDEX(Продукты!$B$4:$F$100,MATCH($H24,Таблица1[Продукты],0),2))*$I24/100 -> 12.9 | K24: =(INDEX(Продукты!$B$4:$F$100,MATCH($H24,Таблица1[Продукты],0),3))*$I24/100 -> 0.1 | L24: =(INDEX(Продукты!$B$4:$F$100,MATCH($H24,Таблица1[Продукты],0),4))*$I24/100 -> 69.9 | M24: =(INDEX(Продукты!$B$4:$F$100,MATCH($H24,Таблица1[Продукты],0),5))*$I24/100 -> 344 | O24: Говядина (консерва) | P24: 100 | Q24: =(INDEX(Продукты!$B$4:$F$100,MATCH($O24,Таблица1[Продукты],0),2))*$P24/100 -> 16.7 | R24: =(INDEX(Продукты!$B$4:$F$100,MATCH($O24,Таблица1[Продукты],0),3))*$P24/100 -> 14.3 | S24: =(INDEX(Продукты!$B$4:$F$100,MATCH($O24,Таблица1[Продукты],0),4))*$P24/100 -> 3.9 | T24: =(INDEX(Продукты!$B$4:$F$100,MATCH($O24,Таблица1[Продукты],0),5))*$P24/100 -> 212
A35: День | F35: 7 | H35: День | M35: 8
C37: Белков: | D37: Жиров: | E37: Углеводов: | F37: кКал: | J37: Белков: | K37: Жиров: | L37: Углеводов: | M37: кКал:
C38: =SUM(C40:C57) -> 29.6 | D38: =SUM(D40:D57) -> 14.4 | E38: =SUM(E40:E68) -> 73.8 | F38: =SUM(F40:F68) -> 556 | J38: =SUM(J40:J57) -> 25.8 | K38: =SUM(K40:K57) -> 0.2 | L38: =SUM(L40:L68) -> 139.8 | M38: =SUM(M40:M68) -> 688
B39: Масса (г.) | I39: Масса (г.)
A40: Макароны | B40: 100 | C40: =(INDEX(Продукты!$B$4:$F$100,MATCH($A40,Таблица1[Продукты],0),2))*$B40/100 -> 12.9 | D40: =(INDEX(Продукты!$B$4:$F$100,MATCH($A40,Таблица1[Продукты],0),3))*$B40/100 -> 0.1 | E40: =(INDEX(Продукты!$B$4:$F$100,MATCH($A40,Таблица1[Продукты],0),4))*$B40/100 -> 69.9 | F40: =(INDEX(Продукты!$B$4:$F$100,MATCH($A40,Таблица1[Продукты],0),5))*$B40/100 -> 344 | H40: Макароны | I40: 100 | J40: =(INDEX(Продукты!$B$4:$F$100,MATCH($H40,Таблица1[Продукты],0),2))*$I40/100 -> 12.9 | K40: =(INDEX(Продукты!$B$4:$F$100,MATCH($H40,Таблица1[Продукты],0),3))*$I40/100 -> 0.1 | L40: =(INDEX(Продукты!$B$4:$F$100,MATCH($H40,Таблица1[Продукты],0),4))*$I40/100 -> 69.9 | M40: =(INDEX(Продукты!$B$4:$F$100,MATCH($H40,Таблица1[Продукты],0),5))*$I40/100 -> 344
A41: Говядина (консерва) | B41: 100 | C41: =(INDEX(Продукты!$B$4:$F$100,MATCH($A41,Таблица1[Продукты],0),2))*$B41/100 -> 16.7 | D41: =(INDEX(Продукты!$B$4:$F$100,MATCH($A41,Таблица1[Продукты],0),3))*$B41/100 -> 14.3 | E41: =(INDEX(Продукты!$B$4:$F$100,MATCH($A41,Таблица1[Продукты],0),4))*$B41/100 -> 3.9 | F41: =(INDEX(Продукты!$B$4:$F$100,MATCH($A41,Таблица1[Продукты],0),5))*$B41/100 -> 212 | H41: Макароны | I41: 100 | J41: =(INDEX(Продукты!$B$4:$F$100,MATCH($H41,Таблица1[Продукты],0),2))*$I41/100 -> 12.9 | K41: =(INDEX(Продукты!$B$4:$F$100,MATCH($H41,Таблица1[Продукты],0),3))*$I41/100 -> 0.1 | L41: =(INDEX(Продукты!$B$4:$F$100,MATCH($H41,Таблица1[Продукты],0),4))*$I41/100 -> 69.9 | M41: =(INDEX(Продукты!$B$4:$F$100,MATCH($H41,Таблица1[Продукты],0),5))*$I41/100 -> 344
A52: Макароны | B52: =SUMPRODUCT(--(nA=A52),nB)+SUMPRODUCT(--(nH=A52),nI)+SUMPRODUCT(--(nO=A52),nP) -> 1000
A54: Общий вес гр. | B54: =SUM(nB,nI,nP) -> 1850

Sheet Итого
A1: Кол-во участников: | B1: 6
A3: Продукты | C3: масса (г.)
A4: =Продукты!$B4 -> Рисовая | C4: =SUMPRODUCT(--(nA=A4),nB)+SUMPRODUCT(--(nH=A4),nI)+SUMPRODUCT(--(nO=A4),nP) -> 0
A5: =Продукты!$B5 -> Пшено | C5: =SUMPRODUCT(--(nA=A5),nB)+SUMPRODUCT(--(nH=A5),nI)+SUMPRODUCT(--(nO=A5),nP) -> 0
A6: =Продукты!$B6 -> Овсяная | C6: =SUMPRODUCT(--(nA=A6),nB)+SUMPRODUCT(--(nH=A6),nI)+SUMPRODUCT(--(nO=A6),nP) -> 0
A7: =Продукты!$B7 -> Перловая | C7: =SUMPRODUCT(--(nA=A7),nB)+SUMPRODUCT(--(nH=A7),nI)+SUMPRODUCT(--(nO=A7),nP) -> 0
A8: =Продукты!$B8 -> Кукурузная | C8: =SUMPRODUCT(--(nA=A8),nB)+SUMPRODUCT(--(nH=A8),nI)+SUMPRODUCT(--(nO=A8),nP) -> 200
A9: =Продукты!$B9 -> Пшеничная | C9: =SUMPRODUCT(--(nA=A9),nB)+SUMPRODUCT(--(nH=A9),nI)+SUMPRODUCT(--(nO=A9),nP) -> 0
A10: =Продукты!$B10 -> Ячневая | C10: =SUMPRODUCT(--(nA=A10),nB)+SUMPRODUCT(--(nH=A10),nI)+SUMPRODUCT(--(nO=A10),nP) -> 0
A11: =Продукты!$B11 -> Гречка | C11: =SUMPRODUCT(--(nA=A11),nB)+SUMPRODUCT(--(nH=A11),nI)+SUMPRODUCT(--(nO=A11),nP) -> 100
A12: =Продукты!$B12 -> Манка | C12: =SUMPRODUCT(--(nA=A12),nB)+SUMPRODUCT(--(nH=A12),nI)+SUMPRODUCT(--(nO=A12),nP) -> 0
A13: =Продукты!$B13 -> Макароны | C13: =SUMPRODUCT(--(nA=A13),nB)+SUMPRODUCT(--(nH=A13),nI)+SUMPRODUCT(--(nO=A13),nP) -> 1000
A14: =Продукты!$B14 -> Сливочное масло | C14: =SUMPRODUCT(--(nA=A14),nB)+SUMPRODUCT(--(nH=A14),nI)+SUMPRODUCT(--(nO=A14),nP) -> 0
A15: =Продукты!$B15 -> Сыр | C15: =SUMPRODUCT(--(nA=A15),nB)+SUMPRODUCT(--(nH=A15),nI)+SUMPRODUCT(--(nO=A15),nP) -> 0
A16: =Продукты!$B16 -> Колбаса копченная | C16: =SUMPRODUCT(--(nA=A16),nB)+SUMPRODUCT(--(nH=A16),nI)+SUMPRODUCT(--(nO=A16),nP) -> 0
A17: =Продукты!$B17 -> Сахар | C17: =SUMPRODUCT(--(nA=A17),nB)+SUMPRODUCT(--(nH=A17),nI)+SUMPRODUCT(--(nO=A17),nP) -> 0
A18: =Продукты!$B18 -> Пряники | C18: =SUMPRODUCT(--(nA=A18),nB)+SUMPRODUCT(--(nH=A18),nI)+SUMPRODUCT(--(nO=A18),nP) -> 0
A19: =Продукты!$B19 -> Вафли | C19: =SUMPRODUCT(--(nA=A19),nB)+SUMPRODUCT(--(nH=A19),nI)+SUMPRODUCT(--(nO=A19),nP) -> 0
A20: =Продукты!$B20 -> Сгущенка | C20: =SUMPRODUCT(--(nA=A20),nB)+SUMPRODUCT(--(nH=A20),nI)+SUMPRODUCT(--(nO=A20),nP) -> 0
A21: =Продукты!$B21 -> Сайра | C21: =SUMPRODUCT(--(nA=A21),nB)+SUMPRODUCT(--(nH=A21),nI)+SUMPRODUCT(--(nO=A21),nP) -> 0
A22: =Продукты!$B22 -> Сухарики | C22: =SUMPRODUCT(--(nA=A22),nB)+SUMPRODUCT(--(nH=A22),nI)+SUMPRODUCT(--(nO=A22),nP) -> 0
A23: =Продукты!$B23 -> Фасоль | C23: =SUMPRODUCT(--(nA=A23),nB)+SUMPRODUCT(--(nH=A23),nI)+SUMPRODUCT(--(nO=A23),nP) -> 0
A24: =Продукты!$B24 -> Арахис | C24: =SUMPRODUCT(--(nA=A24),nB)+SUMPRODUCT(--(nH=A24),nI)+SUMPRODUCT(--(nO=A24),nP) -> 0
A25: =Продукты!$B25 -> Говядина (консерва) | C25: =SUMPRODUCT(--(nA=A25),nB)+SUMPRODUCT(--(nH=A25),nI)+SUMPRODUCT(--(nO=A25),nP) -> 550

Sheet Кто что несёт
